fUSD/lending_fUSD_20250416
["ID","MTS","AMOUNT","RATE_DAILY","PERIOD"]
[358163734,1744806703384,-537.12472553,0.00054794,120]
[358163735,1744806703394,-500.0,0.00054794,120]
[358163736,1744806703405,-540.92740322,0.00054794,120]
[358163737,1744806703415,-500.0,0.00054794,120]
[358163738,1744806703424,-506.64063557,0.00054794,120]
[358163739,1744806703433,-500.0,0.00054794,120]
[358163740,1744806703443,-500.0,0.00054794,120]
[358163741,1744806703452,-500.0,0.00054794,120]
[358163742,1744806703462,-500.0,0.00054794,120]
[358163743,1744806703471,-500.0,0.00054794,120]
[358163744,1744806703480,-500.0,0.00054794,120]
[358163745,1744806703490,-500.0,0.00054794,120]
[358163746,1744806703501,-500.0,0.00054794,120]
[358163747,1744806703511,-500.0,0.00054794,120]
[358163748,1744806703521,-500.0,0.00054794,120]
[358163749,1744806703530,-500.0,0.00054794,120]
[358163750,1744806703539,-500.0,0.00054794,120]
[358163751,1744806703550,-1327.92,0.00054794,120]
[358163752,1744806703559,-500.0,0.00054794,120]
[358163753,1744806703569,-500.0,0.00054794,120]
[358163754,1744806703579,-500.0,0.00054794,120]
[358163755,1744806703589,-500.0,0.00054794,120]
[358163756,1744806703599,-603.96967358,0.00054794,120]
[358163757,1744806703610,-1618.35,0.00054794,120]
[358163758,1744806703620,-500.0,0.00054794,120]
[358163759,1744806703631,-500.0,0.00054794,120]
[358163760,1744806703642,-500.0,0.00054794,120]
[358163761,1744806703652,-636.55,0.00054794,120]
[358163762,1744806703662,-508.68520488,0.00054794,120]
[358163763,1744806703671,-500.0,0.00054794,120]
[358163764,1744806703681,-505.87273989,0.00054794,120]
[358163765,1744806703690,-500.0,0.00054794,120]
[358163766,1744806703700,-500.0,0.00054794,120]
[358163767,1744806703710,-500.0,0.00054794,120]
[358163768,1744806703719,-501.58275164,0.00054794,120]
[358163769,1744806703729,-500.0,0.00054794,120]
[358163770,1744806703739,-500.0,0.00054794,120]
[358163771,1744806703748,-500.0,0.00054794,120]
[358163772,1744806703759,-500.0,0.00054794,120]
[358163773,1744806703768,-500.0,0.00054794,120]
[358163774,1744806703779,-500.0,0.00054794,120]
[358163775,1744806703789,-503.3153708,0.00054794,120]
[358163776,1744806703799,-500.0,0.00054794,120]
[358163777,1744806703809,-500.0,0.00054794,120]
[358163778,1744806703818,-500.0,0.00054794,120]
[358163779,1744806703829,-1467.63,0.00054794,120]
[358163780,1744806703839,-500.0,0.00054794,120]
[358163781,1744806703849,-532.89894454,0.00054794,120]
[358163782,1744806703859,-500.0,0.00054794,120]
[358163783,1744806703869,-500.0,0.00054794,120]
[358163784,1744806703879,-500.0,0.00054794,120]
[358163785,1744806703889,-500.0,0.00054794,120]
[358163786,1744806703899,-2000.0,0.00054794,2]
[358163787,1744806703909,-1499.43,0.00054794,120]
[358163788,1744806703924,-509.57161598,0.00054794,120]
[358163789,1744806703935,-500.0,0.00054794,120]
[358163790,1744806703945,-500.0,0.00054794,120]
[358163791,1744806703955,-500.0,0.00054794,120]
[358163792,1744806703965,-1509.57,0.00054794,120]
[358163793,1744806703974,-500.0,0.00054794,120]
[358163794,1744806703984,-500.0,0.00054794,120]
[358163795,1744806703995,-514.56536069,0.00054794,120]
[358163796,1744806704006,-500.0,0.00054794,120]
[358163797,1744806704016,-500.0,0.00054794,120]
[358163798,1744806704027,-369.25480424,0.00054794,120]
[358163799,1744806704037,-500.0,0.00054794,120]
[358163800,1744806704047,-500.0,0.00054794,120]
[358163801,1744806704057,-500.0,0.00054794,120]
[358163802,1744806704067,-500.0,0.00054794,120]
[358163803,1744806704077,-1293.45,0.00054794,120]
[358163804,1744806704087,-504.79701614,0.00054794,120]
[358163805,1744806704097,-500.0,0.00054794,120]
[358163806,1744806704107,-500.0,0.00054794,120]
[358163807,1744806704117,-500.0,0.00054794,120]
[358163808,1744806704127,-500.0,0.00054794,120]
[358163809,1744806704138,-500.0,0.00054794,120]
[358163810,1744806704148,-500.0,0.00054794,120]
[358163811,1744806704158,-500.0,0.00054794,120]
[358163812,1744806704168,-500.0,0.00054794,120]
[358163813,1744806704178,-524.91998093,0.00054794,120]
[358163814,1744806704188,-500.0,0.00054794,120]
[358163815,1744806704199,-500.0,0.00054794,120]
[358163816,1744806704209,-500.0,0.00054794,120]
[358163817,1744806704219,-280.13052978,0.00054794,120]
[358163818,1744806704229,-500.0,0.00054794,120]
[358163819,1744806704239,-500.0,0.00054794,120]
[358163820,1744806704248,-746.24,0.00054794,2]
[358163821,1744806704259,-500.0,0.00054794,120]
[358163822,1744806704269,-500.0,0.00054794,120]
[358163823,1744806704279,-500.0,0.00054794,120]
[358163824,1744806704289,-500.0,0.00054794,120]
[358163825,1744806704299,-578.59629054,0.00054794,120]
[358163826,1744806704308,-543.8288725,0.00054794,120]
[358163827,1744806704319,-500.0,0.00054794,120]
[358163828,1744806704328,-500.0,0.00054794,120]
[358163829,1744806704339,-500.0,0.00054794,120]
[358163830,1744806704349,-500.0,0.00054794,120]
[358163831,1744806704359,-500.0,0.00054794,120]
[358163832,1744806704370,-500.0,0.00054794,120]
[358163833,1744806704380,-500.0,0.00054794,120]
[358163834,1744806704391,-1154.55,0.00054794,120]
[358163835,1744806704405,-500.0,0.00054794,120]
[358163836,1744806704415,-500.0,0.00054794,120]
[358163837,1744806704426,-500.0,0.00054794,120]
[358163838,1744806704436,-500.0,0.00054794,120]
[358163839,1744806704446,-537.16218729,0.00054794,120]
[358163840,1744806704456,-528.14513736,0.00054794,120]
[358163841,1744806704466,-500.0,0.00054794,120]
[358163842,1744806704478,-500.0,0.00054794,120]
[358163843,1744806704489,-500.0,0.00054794,120]
[358163844,1744806704498,-500.0,0.00054794,120]
[358163845,1744806704508,-1111.98,0.00054794,120]
[358163846,1744806704518,-706.47,0.00054794,2]
[358163847,1744806704528,-706.47,0.00054794,2]
[358163848,1744806704538,-706.47,0.00054794,2]
[358163849,1744806704549,-706.47,0.00054794,2]
[358163850,1744806704558,-500.0,0.00054794,120]
[358163851,1744806704568,-706.47,0.00054794,2]
[358163852,1744806704578,-500.0,0.00054794,120]
[358163853,1744806704588,-706.47,0.00054794,2]
[358163854,1744806704599,-706.47,0.00054794,2]
[358163855,1744806704608,-706.47,0.00054794,2]
[358163856,1744806704618,-706.47,0.00054794,2]
[358163857,1744806704628,-706.47,0.00054794,2]
[358163858,1744806704638,-519.21597703,0.00054794,120]
[358163859,1744806704648,-502.33303736,0.00054794,120]
[358163860,1744806704658,-706.47,0.00054794,2]
[358163861,1744806704668,-706.47,0.00054794,2]
[358163862,1744806704678,-500.0,0.00054794,120]
[358163863,1744806704688,-500.0,0.00054794,120]
[358163864,1744806704698,-706.47,0.00054794,2]
[358163865,1744806704708,-537.53733019,0.00054794,120]
[358163866,1744806704718,-706.47,0.00054794,2]
[358163867,1744806704728,-706.47,0.00054794,2]
[358163868,1744806704738,-500.0,0.00054794,120]
[358163869,1744806704749,-706.47,0.00054794,2]
[358163870,1744806704760,-706.47,0.00054794,2]
[358163871,1744806704770,-500.0,0.00054794,120]
[358163872,1744806704780,-706.47,0.00054794,2]
[358163873,1744806704790,-500.0,0.00054794,120]
[358163874,1744806704801,-706.47,0.00054794,2]
[358163875,1744806704993,-706.47,0.00054794,2]
[358163876,1744806705029,-500.0,0.00054794,120]
[358163877,1744806705039,-706.47,0.00054794,2]
[358163878,1744806705049,-706.47,0.00054794,2]
[358163879,1744806705058,-706.47,0.00054794,2]
[358163880,1744806705068,-706.61193045,0.00054794,2]
[358163881,1744806705077,-500.0,0.00054794,120]
[358163882,1744806705087,-500.0,0.00054794,120]
[358163883,1744806705097,-522.85343534,0.00054794,120]
[358163884,1744806705106,-500.0,0.00054794,120]
[358163885,1744806705115,-500.0,0.00054794,120]
[358163886,1744806705124,-500.0,0.00054794,120]
[358163887,1744806705134,-333.26106168,0.00054794,120]
[358163888,1744806705143,-500.0,0.00054794,120]
[358163889,1744806705153,-500.0,0.00054794,120]
[358163890,1744806705163,-503.82888616,0.00054794,120]
[358163891,1744806705172,-500.0,0.00054794,120]
[358163892,1744806705182,-500.0,0.00054794,120]
[358163893,1744806705191,-500.0,0.00054794,120]
[358163894,1744806705201,-519.88605785,0.00054794,120]
[358163895,1744806705210,-526.97352843,0.00054794,120]
[358163896,1744806705220,-504.51294806,0.00054794,120]
[358163897,1744806705230,-500.0,0.00054794,120]
[358163898,1744806705240,-500.0,0.00054794,120]
[358163899,1744806705249,-500.0,0.00054794,120]
[358163900,1744806705261,-500.0,0.00054794,120]
[358163901,1744806705271,-565.67570543,0.00054794,120]
[358163902,1744806705280,-500.0,0.00054794,120]
[358163903,1744806705290,-518.43845276,0.00054794,120]
[358163904,1744806705300,-500.0,0.00054794,120]
[358163905,1744806705309,-510.51130827,0.00054794,120]
[358163906,1744806705320,-500.0,0.00054794,120]
[358163907,1744806705329,-500.0,0.00054794,120]
[358163908,1744806705339,-500.0,0.00054794,120]
[358163909,1744806705349,-500.0,0.00054794,120]
[358163910,1744806705359,-500.0,0.00054794,120]
[358163911,1744806705368,-500.0,0.00054794,120]
[358163912,1744806705377,-500.0,0.00054794,120]
[358163913,1744806705387,-520.429919,0.00054794,120]
[358163914,1744806705399,-500.0,0.00054794,120]
[358163915,1744806705409,-504.57929391,0.00054794,120]
[358163916,1744806705419,-500.0,0.00054794,120]
[358163917,1744806705429,-502.55334681,0.00054794,120]
[358163918,1744806705440,-500.0,0.00054794,120]
[358163919,1744806705449,-500.0,0.00054794,120]
[358163920,1744806705459,-500.0,0.00054794,120]
[358163921,1744806705470,-500.0,0.00054794,120]
[358163922,1744806705480,-519.74625529,0.00054794,120]
[358163923,1744806705490,-510.25042577,0.00054794,120]
[358163924,1744806705500,-500.0,0.00054794,120]
[358163925,1744806705515,-580.6,0.00054794,120]
[358163926,1744806705526,-500.0,0.00054794,120]
[358163927,1744806705536,-500.0,0.00054794,120]
[358163928,1744806705547,-500.0,0.00054794,120]
[358163929,1744806705556,-500.0,0.00054794,7]
[358163930,1744806705566,-503.36975138,0.00054794,120]
[358163931,1744806705576,-522.97018929,0.00054794,120]
[358163932,1744806705586,-500.0,0.00054794,120]
[358163933,1744806705595,-500.0,0.00054794,120]
[358163934,1744806705605,-629.16153169,0.00054794,120]
[358163935,1744806705615,-503.96374801,0.00054794,120]
[358163936,1744806705625,-500.0,0.00054794,120]
[358163937,1744806705635,-500.0,0.00054794,120]
[358163938,1744806705644,-500.0,0.00054794,120]
[358163939,1744806705654,-500.0,0.00054794,120]
[358163940,1744806705663,-500.0,0.00054794,120]
[358163941,1744806705672,-500.0,0.00054794,120]
[358163942,1744806705682,-1810.18,0.00054794,120]
[358163943,1744806705691,-500.0,0.00054794,120]
[358163944,1744806705700,-500.0,0.00054794,120]
[358163945,1744806705708,-500.0,0.00054794,120]
[358163946,1744806705717,-500.0,0.00054794,120]
[358163947,1744806705726,-500.0,0.00054794,120]
[358163948,1744806705735,-500.0,0.00054794,120]
[358163949,1744806705744,-500.0,0.00054794,120]
[358163950,1744806705753,-511.12231584,0.00054794,120]
[358163951,1744806705766,-648.56851899,0.00054794,120]
[358163952,1744806705775,-500.0,0.00054794,120]
[358163953,1744806705784,-512.07926856,0.00054794,120]
[358163954,1744806705794,-500.0,0.00054794,120]
[358163955,1744806705803,-515.51261662,0.00054794,120]
[358163956,1744806705813,-509.10228144,0.00054794,120]
[358163957,1744806705824,-505.16716974,0.00054794,30]
[358163958,1744806705833,-1251.02,0.00054794,120]
[358163959,1744806705843,-500.0,0.00054794,120]
[358163960,1744806705853,-500.0,0.00054794,120]
[358163961,1744806705863,-500.0,0.00054794,120]
[358163962,1744806705872,-500.0,0.00054794,120]
[358163963,1744806705882,-500.0,0.00054794,120]
[358163964,1744806705891,-552.18933577,0.00054794,120]
[358163965,1744806705901,-526.28874025,0.00054794,120]
[358163966,1744806705912,-500.0,0.00054794,120]
[358163967,1744806705921,-500.0,0.00054794,120]
[358163968,1744806705931,-1201.59,0.00054794,120]
[358163969,1744806705940,-500.0,0.00054794,120]
[358163970,1744806705949,-526.12398732,0.00054794,120]
[358163971,1744806705959,-500.0,0.00054794,120]
[358163972,1744806705968,-500.0,0.00054794,120]
[358163973,1744806705977,-500.0,0.00054794,120]
[358163974,1744806705987,-387.32653799,0.00054794,120]
[358163975,1744806705997,-500.0,0.00054794,120]
[358163976,1744806706007,-500.0,0.00054794,120]
[358163977,1744806706017,-500.0,0.00054794,120]
[358163978,1744806706028,-500.0,0.00054794,120]
[358163979,1744806706037,-500.0,0.00054794,120]
[358163980,1744806706047,-500.0,0.00054794,120]
[358163981,1744806706057,-500.0,0.00054794,120]
[358163982,1744806706067,-500.0,0.00054794,120]
[358163983,1744806706077,-520.79076747,0.00054794,120]
[358163984,1744806706086,-500.0,0.00054794,120]
[358163985,1744806706096,-1985.01,0.00054794,120]
[358163986,1744806706107,-500.0,0.00054794,120]
[358163987,1744806706116,-500.0,0.00054794,120]
[358163988,1744806706126,-505.35789886,0.00054794,120]
[358163989,1744806706136,-500.96151967,0.00054794,120]
[358163990,1744806706146,-540.48952194,0.00054794,120]
[358163991,1744806706156,-500.0,0.00054794,120]
[358163992,1744806706166,-500.0,0.00054794,120]
[358163993,1744806706175,-500.0,0.00054794,120]
[358163994,1744806706184,-552.19044454,0.00054794,120]
[358163995,1744806706194,-500.0,0.00054794,120]
[358163996,1744806706204,-500.0,0.00054794,120]
[358163997,1744806706214,-500.0,0.00054794,120]
[358163998,1744806706225,-500.0,0.00054794,120]
[358163999,1744806706234,-511.41512639,0.00054794,120]
[358164000,1744806706244,-500.0,0.00054794,120]
[358164001,1744806706255,-500.0,0.00054794,120]
[358164002,1744806706265,-504.69264158,0.00054794,120]
[358164003,1744806706274,-940.99,0.00054794,30]
[358164004,1744806706284,-504.06176762,0.00054794,120]
[358164005,1744806706294,-500.0,0.00054794,120]
[358164006,1744806706303,-544.179152,0.00054794,120]
[358164007,1744806706312,-500.0,0.00054794,120]
[358164008,1744806706322,-500.0,0.00054794,120]
[358164009,1744806706331,-500.0,0.00054794,120]
[358164010,1744806706341,-418.64087922,0.00054794,120]
[358164011,1744806706351,-500.0,0.00054794,120]
[358164012,1744806706361,-500.0,0.00054794,120]
[358164013,1744806706371,-500.0,0.00054794,120]
[358164014,1744806706380,-500.0,0.00054794,120]
[358164015,1744806706391,-500.0,0.00054794,120]
[358164016,1744806706405,-500.0,0.00054794,120]
[358164017,1744806706415,-1000.0,0.00054794,120]
[358164018,1744806706424,-540.36006233,0.00054794,120]
[358164019,1744806706434,-500.0,0.00054794,120]
[358164020,1744806706446,-500.0,0.00054794,120]
[358164021,1744806706456,-500.0,0.00054794,120]
[358164022,1744806706465,-236.72668399,0.00054794,120]
[358164023,1744806706477,-500.0,0.00054794,120]
[358164024,1744806706486,-616.41262862,0.00054794,120]
[358164025,1744806706496,-500.0,0.00054794,3]
[358164026,1744806706505,-2041.11,0.00054794,120]
[358164027,1744806706517,-586.39468988,0.00054794,120]
[358164028,1744806706527,-500.0,0.00054794,120]
[358164029,1744806706537,-524.7551265,0.00054794,120]
[358164030,1744806706546,-510.13481671,0.00054794,120]
[358164031,1744806706556,-509.44044345,0.00054794,120]
[358164032,1744806706566,-500.0,0.00054794,120]
[358164033,1744806706577,-509.69176357,0.00054794,120]
[358164034,1744806706586,-500.0,0.00054794,120]
[358164035,1744806706596,-500.0,0.00054794,120]
[358164036,1744806706605,-500.0,0.00054794,120]
[358164038,1744806706614,-546.35907753,0.00054794,120]
[358164039,1744806706624,-500.0,0.00054794,120]
[358164040,1744806706633,-500.0,0.00054794,120]
[358164041,1744806706642,-500.0,0.00054794,120]
[358164042,1744806706651,-1351.5,0.00054794,120]
[358164043,1744806706660,-512.74581852,0.00054794,120]
[358164044,1744806706670,-513.93713085,0.00054794,120]
[358164045,1744806706679,-500.0,0.00054794,120]
[358164046,1744806706688,-643.00080952,0.00054794,120]
[358164047,1744806706697,-500.0,0.00054794,120]
[358164048,1744806706707,-500.0,0.00054794,120]
[358164049,1744806706716,-500.0,0.00054794,120]
[358164050,1744806706726,-1142.14,0.00054794,120]
[358164051,1744806706735,-2831.06741329,0.00054794,120]
[358164052,1744806706744,-500.0,0.00054794,120]
[358164053,1744806706753,-500.0,0.00054794,30]
[358164054,1744806706766,-500.0,0.00054794,120]
[358164055,1744806706776,-500.0,0.00054794,120]
[358164056,1744806706786,-500.0,0.00054794,120]
[358164057,1744806706795,-503.99329616,0.00054794,120]
[358164058,1744806706804,-500.0,0.00054794,120]
[358164059,1744806706814,-500.0,0.00054794,120]
[358164060,1744806706824,-500.0,0.00054794,120]
[358164061,1744806706833,-500.0,0.00054794,120]
[358164062,1744806706843,-500.0,0.00054794,120]
[358164063,1744806706853,-500.0,0.00054794,120]
[358164064,1744806706862,-500.0,0.00054794,120]
[358164065,1744806706871,-500.0,0.00054794,120]
[358164066,1744806706880,-500.0,0.00054794,120]
[358164067,1744806706890,-500.0,0.00054794,120]
[358164068,1744806706899,-500.0,0.00054794,120]
[358164069,1744806706908,-500.0,0.00054794,120]
[358164070,1744806706918,-522.05146361,0.00054794,120]
[358164071,1744806706928,-500.0,0.00054794,120]
[358164072,1744806706937,-500.0,0.00054794,120]
[358164073,1744806706946,-500.0,0.00054794,120]
[358164074,1744806706956,-1507.94,0.00054794,120]
[358164075,1744806706965,-500.0,0.00054794,120]
[358164076,1744806706975,-500.0,0.00054794,120]
[358164077,1744806706984,-500.0,0.00054794,120]
[358164078,1744806706994,-500.0,0.00054794,120]
[358164079,1744806707003,-474.7049676,0.00054794,120]
[358164080,1744806707014,-500.0,0.00054794,120]
[358164081,1744806707024,-515.01287341,0.00054794,120]
[358164082,1744806707033,-793.43,0.00054794,120]
[358164083,1744806707043,-571.01558375,0.00054794,120]
[358164084,1744806707053,-500.0,0.00054794,120]
[358164085,1744806707062,-526.89840334,0.00054794,120]
[358164086,1744806707071,-500.0,0.00054794,120]
[358164087,1744806707080,-522.70679949,0.00054794,120]
[358164088,1744806707090,-500.0,0.00054794,120]
[358164089,1744806707099,-420.10349297,0.00054794,120]
[358164090,1744806707109,-500.0,0.00054794,120]
[358164091,1744806707119,-536.52927603,0.00054794,120]
[358164092,1744806707128,-525.26633398,0.00054794,120]
[358164093,1744806707138,-500.0,0.00054794,120]
[358164094,1744806707147,-500.0,0.00054794,120]
[358164095,1744806707156,-500.0,0.00054794,120]
[358164096,1744806707166,-500.0,0.00054794,120]
[358164097,1744806707175,-500.0,0.00054794,120]
[358164098,1744806707185,-534.91802059,0.00054794,120]
[358164099,1744806707195,-500.0,0.00054794,120]
[358164100,1744806707204,-500.0,0.00054794,120]
[358164101,1744806707214,-500.0,0.00054794,120]
[358164102,1744806707224,-510.84151548,0.00054794,120]
[358164103,1744806707234,-500.0,0.00054794,120]
[358164104,1744806707244,-500.0,0.00054794,120]
[358164105,1744806707254,-2247.62,0.00054794,120]
[358164106,1744806707266,-500.0,0.00054794,120]
[358164107,1744806707275,-500.0,0.00054794,120]
[358164108,1744806707284,-500.0,0.00054794,120]
[358164109,1744806707296,-500.0,0.00054794,120]
[358164110,1744806707306,-500.0,0.00054794,120]
[358164111,1744806707315,-500.0,0.00054794,120]
[358164112,1744806707326,-500.0,0.00054794,120]
[358164113,1744806707335,-511.20066812,0.00054794,120]
[358164114,1744806707345,-500.0,0.00054794,120]
[358164115,1744806707355,-500.0,0.00054794,120]
[358164116,1744806707365,-500.0,0.00054794,120]
[358164117,1744806707374,-500.0,0.00054794,120]
[358164118,1744806707384,-500.0,0.00054794,120]
[358164119,1744806707397,-500.0,0.00054794,120]
[358164120,1744806707409,-500.0,0.00054794,120]
[358164121,1744806707419,-500.0,0.00054794,120]
[358164122,1744806707485,-508.40488215,0.00054794,120]
[358164123,1744806707495,-500.0,0.00054794,120]
[358164124,1744806707506,-509.11398928,0.00054794,120]
[358164125,1744806707519,-500.0,0.00054794,120]
[358164126,1744806707530,-500.0,0.00054794,120]
[358164127,1744806707540,-500.0,0.00054794,120]
[358164128,1744806707550,-500.0,0.00054794,120]
[358164129,1744806707560,-500.0,0.00054794,120]
[358164130,1744806707570,-500.0,0.00054794,120]
[358164131,1744806707580,-500.0,0.00054794,120]
[358164132,1744806707589,-500.0,0.00054794,120]
[358164133,1744806707597,-500.0,0.00054794,120]
[358164134,1744806707606,-500.0,0.00054794,120]
[358164135,1744806707616,-500.0,0.00054794,120]
[358164136,1744806707625,-500.0,0.00054794,120]
[358164137,1744806707635,-500.0,0.00054794,120]
[358164138,1744806707643,-569.91582669,0.00054794,120]
[358164139,1744806707652,-500.0,0.00054794,120]
[358164140,1744806707661,-500.0,0.00054794,120]
[358164141,1744806707671,-1260.37,0.00054794,120]
[358164142,1744806707680,-504.57038572,0.00054794,120]
[358164143,1744806707690,-500.0,0.00054794,120]
[358164144,1744806707699,-340.82254537,0.00054794,120]
[358164145,1744806707709,-500.0,0.00054794,120]
[358164146,1744806707718,-524.3382422,0.00054794,120]
[358164147,1744806707728,-505.95264033,0.00054794,120]
[358164148,1744806707738,-500.0,0.00054794,120]
[358164149,1744806707748,-500.0,0.00054794,120]
[358164150,1744806707760,-375.86417606,0.00054794,120]
[358164151,1744806707770,-500.0,0.00054794,120]
[358164152,1744806707779,-500.0,0.00054794,120]
[358164153,1744806707789,-3625.34,0.00054794,120]
[358164154,1744806707798,-500.0,0.00054794,120]
[358164155,1744806707808,-500.0,0.00054794,120]
[358164156,1744806707819,-525.58140051,0.00054794,120]
[358164157,1744806707829,-500.0,0.00054794,120]
[358164158,1744806707839,-500.0,0.00054794,120]
[358164159,1744806707848,-500.0,0.00054794,120]
[358164160,1744806707858,-500.0,0.00054794,120]
[358164161,1744806707867,-528.45982544,0.00054794,120]
[358164162,1744806707877,-500.0,0.00054794,60]
[358164163,1744806707886,-548.58785698,0.00054794,120]
[358164164,1744806707895,-500.0,0.00054794,120]
[358164165,1744806707904,-500.0,0.00054794,120]
[358164166,1744806707914,-500.0,0.00054794,120]
[358164167,1744806707923,-500.0,0.00054794,120]
[358164168,1744806707932,-533.33294758,0.00054794,120]
[358164169,1744806707941,-500.0,0.00054794,120]
[358164170,1744806707951,-500.0,0.00054794,120]
[358164171,1744806707960,-500.0,0.00054794,120]
[358164172,1744806707970,-1267.03,0.00054794,120]
[358164173,1744806707979,-500.0,0.00054794,120]
[358164174,1744806707988,-500.0,0.00054794,120]
[358164175,1744806707998,-500.0,0.00054794,120]
[358164176,1744806708006,-500.0,0.00054794,120]
[358164177,1744806708018,-500.0,0.00054794,120]
[358164178,1744806708027,-500.0,0.00054794,120]
[358164179,1744806708036,-1140.36,0.00054794,120]
[358164180,1744806708046,-500.0,0.00054794,120]
[358164181,1744806708055,-500.0,0.00054794,120]
[358164182,1744806708065,-500.0,0.00054794,120]
[358164183,1744806708074,-500.0,0.00054794,120]
[358164184,1744806708084,-500.0,0.00054794,120]
[358164185,1744806708093,-501.19995001,0.00054794,120]
[358164186,1744806708102,-517.61417791,0.00054794,120]
[358164187,1744806708111,-497.62990919,0.00054794,120]
[358164188,1744806708121,-511.40794907,0.00054794,120]
[358164189,1744806708130,-500.0,0.00054794,120]
[358164190,1744806708140,-500.0,0.00054794,120]
[358164191,1744806708150,-586.34771397,0.00054794,120]
[358164192,1744806708161,-508.24388831,0.00054794,120]
[358164193,1744806708170,-506.96403554,0.00054794,120]
[358164194,1744806708180,-502.13932677,0.00054794,120]
[358164195,1744806708189,-500.0,0.00054794,120]
[358164196,1744806708199,-1619.33,0.00054794,120]
[358164197,1744806708211,-500.0,0.00054794,120]
[358164198,1744806708221,-502.95988703,0.00054794,120]
[358164199,1744806708231,-500.0,0.00054794,120]
[358164200,1744806708242,-500.0,0.00054794,120]
[358164201,1744806708253,-1191.84,0.00054794,120]
[358164202,1744806708266,-500.0,0.00054794,120]
[358164203,1744806708278,-500.0,0.00054794,120]
[358164204,1744806708288,-519.19274907,0.00054794,120]
[358164205,1744806708299,-500.0,0.00054794,120]
[358164206,1744806708309,-500.0,0.00054794,120]
[358164207,1744806708319,-534.20230937,0.00054794,120]
[358164208,1744806708330,-500.0,0.00054794,120]
[358164209,1744806708340,-500.0,0.00054794,120]
[358164210,1744806708351,-500.0,0.00054794,120]
[358164211,1744806708362,-1343.91,0.00054794,120]
[358164212,1744806708372,-511.92151203,0.00054794,120]
[358164213,1744806708383,-500.0,0.00054794,120]
[358164214,1744806708394,-500.0,0.00054794,120]
[358164215,1744806708409,-500.0,0.00054794,120]
[358164216,1744806708419,-500.0,0.00054794,120]
[358164217,1744806708429,-500.0,0.00054794,120]
[358164218,1744806708441,-500.0,0.00054794,120]
[358164219,1744806708453,-500.0,0.00054794,120]
[358164220,1744806708463,-500.0,0.00054794,120]
[358164221,1744806708474,-389.1216439,0.00054794,120]
[358164222,1744806708486,-500.0,0.00054794,120]
[358164223,1744806708496,-500.0,0.00054794,120]
[358164224,1744806708506,-507.02190128,0.00054794,120]
[358164225,1744806708522,-2279.54,0.00054794,120]
[358164226,1744806708533,-2070.76,0.00054794,120]
[358164227,1744806708543,-2461.56,0.00054794,120]
[358164228,1744806708554,-515.35486959,0.00054794,120]
[358164229,1744806708564,-500.0,0.00054794,120]
[358164230,1744806708575,-500.0,0.00054794,120]
[358164231,1744806708586,-500.0,0.00054794,120]
[358164232,1744806708597,-479.23210741,0.00054794,120]
[358164233,1744806708607,-500.0,0.00054794,120]
[358164234,1744806708617,-500.0,0.00054794,120]